fUSD/lending_fUSD_20260116
["ID","MTS","AMOUNT","RATE_DAILY","PERIOD"]
[402134482,1768540250501,-500.0,0.00035616,10]
[402134483,1768540250511,-1256.25,0.00035616,10]
[402134484,1768540250520,-500.0,0.00035616,10]
[402134485,1768540250530,-502.76030001,0.00035616,10]
[402134486,1768540250539,-512.72,0.00035616,10]
[402134487,1768540250548,-500.0,0.00035616,10]
[402134488,1768540250558,-1015.29,0.00035616,10]
[402134489,1768540250568,-500.0,0.00035616,10]
[402134490,1768540250577,-504.07087004,0.00035616,10]
[402134491,1768540250587,-500.0,0.00035616,10]
[402134492,1768540250597,-500.0,0.00035616,10]
[402134493,1768540250609,-503.78489875,0.00035616,10]
[402134494,1768540250619,-500.0,0.00035616,10]
[402134495,1768540250629,-990.78,0.00035616,10]
[402134496,1768540250639,-501.48821001,0.00035616,10]
[402134497,1768540250649,-500.0,0.00035616,10]
[402134498,1768540250659,-504.64362614,0.00035616,10]
[402134499,1768540250668,-808.21,0.00035616,10]
[402134500,1768540250678,-665.01,0.00035616,10]
[402134501,1768540250689,-579.00834116,0.00035616,10]
[402134502,1768540250698,-500.0,0.00035616,10]
[402134503,1768540250710,-500.0,0.00035616,10]
[402134504,1768540250719,-502.68613163,0.00035616,10]
[402134505,1768540250729,-500.0,0.00035616,10]
[402134506,1768540250738,-535.54,0.00035616,10]
[402134507,1768540250748,-500.0,0.00035616,10]
[402134508,1768540250758,-500.0,0.00035616,10]
[402134509,1768540250767,-500.0,0.00035616,10]
[402134510,1768540250776,-500.0,0.00035616,10]
[402134511,1768540250785,-527.48,0.00035616,10]
[402134512,1768540250795,-455.04614346,0.00035616,10]
[402134513,1768540250804,-705.86,0.00035616,10]
[402134514,1768540250814,-500.0,0.00035616,10]
[402134515,1768540250823,-500.0,0.00035616,10]
[402134516,1768540250832,-629.74512469,0.00035616,10]
[402134517,1768540250842,-502.20347404,0.00035616,10]
[402134518,1768540250851,-502.94844914,0.00035616,10]
[402134519,1768540250860,-508.6432873,0.00035616,10]
[402134520,1768540250869,-569.71,0.00035616,10]
[402134521,1768540250879,-500.0,0.00035616,10]
[402134522,1768540250888,-286.613391,0.00035616,10]
[402134523,1768540250897,-689.45,0.00035616,10]
[402134524,1768540250907,-930.39,0.00035616,10]
[402134525,1768540250917,-596.31,0.00035616,10]
[402134526,1768540250926,-501.95886321,0.00035616,10]
[402134527,1768540250935,-504.71416881,0.00035616,10]
[402134528,1768540250945,-500.0,0.00035616,10]
[402134529,1768540250955,-502.40690343,0.00035616,10]
[402134530,1768540250964,-500.0,0.00035616,10]
[402134531,1768540250973,-504.7343262,0.00035616,10]
[402134532,1768540250982,-500.0,0.00035616,10]
[402134533,1768540250992,-500.0,0.00035616,10]
[402134534,1768540251001,-736.2,0.00035616,10]
[402134535,1768540251010,-500.0,0.00035616,10]
[402134536,1768540251019,-914.98,0.00035616,10]
[402134537,1768540251029,-500.0,0.00035616,10]
[402134538,1768540251038,-783.63,0.00035616,10]
[402134539,1768540251047,-505.73862204,0.00035616,10]
[402134540,1768540251056,-508.71337745,0.00035616,10]
[402134541,1768540251065,-500.0,0.00035616,10]
[402134542,1768540251075,-925.25,0.00035616,10]
[402134543,1768540251084,-500.0,0.00035616,10]
[402134544,1768540251093,-500.0,0.00035616,10]
[402134545,1768540251102,-500.0,0.00035616,10]
[402134546,1768540251111,-821.88,0.00035616,10]
[402134547,1768540251120,-500.0,0.00035616,10]
[402134548,1768540251130,-500.0,0.00035616,10]
[402134549,1768540251142,-500.0,0.00035616,10]
[402134550,1768540251151,-500.0,0.00035616,10]
[402134551,1768540251160,-500.0,0.00035616,10]
[402134552,1768540251169,-557.47795454,0.00035616,10]
[402134553,1768540251178,-165.422529,0.00035616,10]
[402134554,1768540251187,-500.0,0.00035616,10]
[402134555,1768540251196,-500.0,0.00035616,10]
[402134556,1768540251205,-500.0,0.00035616,10]
[402134557,1768540251214,-500.0,0.00035616,10]
[402134558,1768540251223,-1502.91,0.00035616,10]
[402134559,1768540251232,-500.0,0.00035616,10]
[402134560,1768540251242,-500.0,0.00035616,10]
[402134561,1768540251251,-500.0,0.00035616,10]
[402134562,1768540251260,-664.9,0.00035616,10]
[402134563,1768540251269,-857.34,0.00035616,10]
[402134564,1768540251278,-959.11,0.00035616,10]
[402134565,1768540251287,-500.0,0.00035616,10]
[402134566,1768540251296,-500.0,0.00035616,10]
[402134567,1768540251306,-501.05044584,0.00035616,10]
[402134568,1768540251315,-500.0,0.00035616,10]
[402134569,1768540251324,-508.1016636,0.00035616,10]
[402134570,1768540251334,-813.51,0.00035616,10]
[402134571,1768540251343,-500.0,0.00035616,10]
[402134572,1768540251353,-500.0,0.00035616,10]
[402134573,1768540251362,-500.0,0.00035616,10]
[402134574,1768540251371,-1037.35,0.00035616,10]
[402134575,1768540251381,-750.33,0.00035616,10]
[402134576,1768540251390,-500.93322505,0.00035616,10]
[402134577,1768540251399,-1027.78,0.00035616,10]
[402134578,1768540251408,-500.0,0.00035616,10]
[402134579,1768540251417,-1456.39,0.00035616,10]
[402134580,1768540251426,-500.0,0.00035616,10]
[402134581,1768540251436,-607.83,0.00035616,10]
[402134582,1768540251446,-501.39487193,0.00035616,10]
[402134583,1768540251455,-667.04,0.00035616,10]
[402134584,1768540251464,-576.31138137,0.00035616,10]
[402134585,1768540251475,-500.0,0.00035616,10]
[402134586,1768540251484,-511.83230111,0.00035616,120]
[402134587,1768540251493,-500.8405924,0.00035616,10]
[402134588,1768540251504,-500.0,0.00035616,10]
[402134589,1768540251515,-500.0,0.00035616,10]
[402134590,1768540251525,-500.0,0.00035616,10]
[402134591,1768540251535,-302.08858792,0.00035616,10]
[402134592,1768540251619,-500.0,0.00035616,10]
[402134593,1768540251628,-500.0,0.00035616,10]
[402134594,1768540251638,-587.43,0.00035616,10]
[402134595,1768540251647,-500.0,0.00035616,10]
[402134596,1768540251657,-500.0,0.00035616,10]
[402134597,1768540251666,-571.27,0.00035616,10]
[402134598,1768540251675,-500.0,0.00035616,10]
[402134599,1768540251684,-500.0,0.00035616,10]
[402134600,1768540251693,-500.0,0.00035616,10]
[402134601,1768540251703,-500.0,0.00035616,10]
[402134602,1768540251712,-548.713383,0.00035616,10]
[402134603,1768540251721,-500.0,0.00035616,10]
[402134604,1768540251731,-500.0,0.00035616,10]
[402134605,1768540251740,-500.0,0.00035616,10]
[402134606,1768540251750,-706.14,0.00035616,10]
[402134607,1768540251759,-588.43954939,0.00035616,10]
[402134608,1768540251767,-500.0,0.00035616,10]
[402134609,1768540251776,-501.1353113,0.00035616,10]
[402134610,1768540251786,-505.64411801,0.00035616,10]
[402134611,1768540251795,-502.20024407,0.00035616,10]
[402134612,1768540251804,-500.0,0.00035616,10]
[402134613,1768540251813,-500.0,0.00035616,10]
[402134614,1768540251822,-1464.01,0.00035616,10]
[402134615,1768540251831,-502.02796733,0.00035616,10]
[402134616,1768540251840,-500.0,0.00035616,10]
[402134617,1768540251850,-500.0,0.00035616,10]
[402134618,1768540251859,-1062.79,0.00035616,10]
[402134619,1768540251868,-500.0,0.00035616,10]
[402134620,1768540251876,-902.4,0.00035616,10]
[402134621,1768540251886,-500.0,0.00035616,10]
[402134622,1768540251895,-500.0,0.00035616,10]
[402134623,1768540251904,-501.61441831,0.00035616,10]
[402134624,1768540251914,-500.0,0.00035616,10]
[402134625,1768540251923,-500.0,0.00035616,10]
[402134626,1768540251932,-500.0,0.00035616,10]
[402134627,1768540251941,-1272.85,0.00035616,10]
[402134628,1768540251950,-500.0,0.00035616,10]
[402134629,1768540251959,-500.0,0.00035616,10]
[402134630,1768540251968,-657.28,0.00035616,10]
[402134631,1768540251977,-500.0,0.00035616,10]
[402134632,1768540251986,-1225.25,0.00035616,10]
[402134633,1768540251995,-501.39513557,0.00035616,10]
[402134634,1768540252004,-503.90503522,0.00035616,10]
[402134635,1768540252013,-500.0,0.00035616,10]
[402134636,1768540252022,-500.0,0.00035616,10]
[402134637,1768540252031,-500.0,0.00035616,10]
[402134638,1768540252040,-831.21,0.00035616,10]
[402134639,1768540252049,-1304.84,0.00035616,10]
[402134640,1768540252058,-506.81,0.00035616,10]
[402134641,1768540252068,-500.0,0.00035616,10]
[402134642,1768540252077,-500.0,0.00035616,10]
[402134643,1768540252086,-558.52,0.00035616,10]
[402134644,1768540252095,-500.0,0.00035616,10]
[402134645,1768540252104,-500.0,0.00035616,10]
[402134646,1768540252114,-500.0,0.00035616,10]
[402134647,1768540252124,-578.81342787,0.00035616,10]
[402134648,1768540252137,-500.0,0.00035616,10]
[402134649,1768540252146,-1022.61,0.00035616,10]
[402134650,1768540252155,-500.0,0.00035616,10]
[402134651,1768540252164,-500.0,0.00035616,10]
[402134652,1768540252173,-551.35,0.00035616,10]
[402134653,1768540252182,-927.49,0.00035616,10]
[402134654,1768540252191,-500.0,0.00035616,10]
[402134655,1768540252201,-500.0,0.00035616,10]
[402134656,1768540252210,-500.72503158,0.00035616,10]
[402134657,1768540252219,-500.0,0.00035616,10]
[402134658,1768540252228,-500.0,0.00035616,10]
[402134659,1768540252237,-500.0,0.00035616,10]
[402134660,1768540252246,-851.26,0.00035616,10]
[402134661,1768540252256,-500.0,0.00035616,10]
[402134662,1768540252266,-500.0,0.00035616,10]
[402134663,1768540252275,-822.58,0.00035616,10]
[402134664,1768540252284,-1046.18,0.00035616,10]
[402134665,1768540252293,-500.0,0.00035616,10]
[402134666,1768540252301,-500.0,0.00035616,10]
[402134667,1768540252310,-345.28036249,0.00035616,10]
[402134668,1768540252319,-868.59,0.00035616,10]
[402134669,1768540252328,-500.0,0.00035616,10]
[402134670,1768540252337,-500.0,0.00035616,10]
[402134671,1768540252346,-500.0,0.00035616,10]
[402134672,1768540252355,-290.76442045,0.00035616,10]
[402134673,1768540252368,-536.31,0.00035616,10]
[402134674,1768540252379,-500.0,0.00035616,10]
[402134675,1768540252388,-500.0,0.00035616,10]
[402134676,1768540252399,-508.14311852,0.00035616,10]
[402134677,1768540252408,-500.0,0.00035616,10]
[402134678,1768540252418,-500.0,0.00035616,10]
[402134679,1768540252429,-500.0,0.00035616,10]
[402134680,1768540252439,-500.0,0.00035616,10]
[402134681,1768540252449,-1596.22,0.00035616,10]
[402134682,1768540252458,-500.0,0.00035616,10]
[402134683,1768540252467,-500.0,0.00035616,10]
[402134684,1768540252477,-508.67255344,0.00035616,10]
[402134685,1768540252486,-500.0,0.00035616,10]
[402134686,1768540252495,-500.0,0.00035616,10]
[402134687,1768540252506,-500.0,0.00035616,10]
[402134688,1768540252516,-501.99493829,0.00035616,10]
[402134689,1768540252526,-500.0,0.00035616,10]
[402134690,1768540252535,-500.0,0.00035616,10]
[402134691,1768540252544,-575.33,0.00035616,10]
[402134692,1768540252553,-208.683688,0.00035616,31]
[402134693,1768540252562,-500.0,0.00035616,10]
[402134694,1768540252572,-500.0,0.00035616,10]
[402134695,1768540252581,-500.0,0.00035616,10]
[402134696,1768540252590,-500.0,0.00035616,10]
[402134697,1768540252599,-502.49573816,0.00035616,10]
[402134698,1768540252609,-500.0,0.00035616,10]
[402134699,1768540252619,-500.0,0.00035616,10]
[402134700,1768540252628,-500.0,0.00035616,10]
[402134701,1768540252637,-500.0,0.00035616,10]
[402134702,1768540252646,-1144.45,0.00035616,10]
[402134703,1768540252655,-500.0,0.00035616,10]
[402134704,1768540252665,-2378.6,0.00035616,10]
[402134705,1768540252674,-500.0,0.00035616,10]
[402134706,1768540252683,-560.13476104,0.00035616,10]
[402134707,1768540252692,-500.0,0.00035616,10]
[402134708,1768540252702,-500.0,0.00035616,10]
[402134709,1768540252711,-500.0,0.00035616,10]
[402134710,1768540252720,-500.0,0.00035616,10]
[402134711,1768540252729,-500.0,0.00035616,10]
[402134712,1768540252738,-543.73388385,0.00035616,10]
[402134713,1768540252748,-500.0,0.00035616,10]
[402134714,1768540252757,-1136.24,0.00035616,10]
[402134715,1768540252767,-500.0,0.00035616,10]
[402134716,1768540252776,-500.0,0.00035616,10]
[402134717,1768540252785,-500.0,0.00035616,2]
[402134718,1768540252794,-583.04903324,0.00035616,10]
[402134719,1768540252802,-500.0,0.00035616,10]
[402134720,1768540252811,-500.0,0.00035616,10]
[402134721,1768540252820,-500.0,0.00035616,10]
[402134722,1768540252829,-619.58011844,0.00035616,10]
[402134723,1768540252838,-540.79,0.00035616,10]
[402134724,1768540252847,-676.65,0.00035616,10]
[402134725,1768540252856,-1242.67,0.00035616,10]
[402134726,1768540252865,-500.0,0.00035616,10]
[402134727,1768540252873,-944.01,0.00035616,10]
[402134728,1768540252882,-722.69,0.00035616,10]
[402134729,1768540252891,-505.63864751,0.00035616,10]
[402134730,1768540252900,-500.0,0.00035616,10]
[402134731,1768540252909,-500.0,0.00035616,10]
[402134732,1768540252917,-523.77,0.00035616,10]
[402134733,1768540252927,-500.0,0.00035616,10]
[402134734,1768540252936,-500.0,0.00035616,10]
[402134735,1768540252948,-500.0,0.00035616,10]
[402134736,1768540252957,-502.46784307,0.00035616,10]
[402134737,1768540252967,-502.92515442,0.00035616,10]
[402134738,1768540252976,-500.0,0.00035616,10]
[402134739,1768540252985,-501.84327556,0.00035616,10]
[402134740,1768540252994,-500.0,0.00035616,10]
[402134741,1768540253003,-890.93,0.00035616,10]
[402134742,1768540253012,-1298.7,0.00035616,10]
[402134743,1768540253021,-554.6656217,0.00035616,10]
[402134744,1768540253030,-502.5432709,0.00035616,10]
[402134745,1768540253040,-501.22914798,0.00035616,10]
[402134746,1768540253049,-500.0,0.00035616,10]
[402134747,1768540253059,-186.47524482,0.00035616,10]
[402134748,1768540253069,-786.71,0.00035616,10]
[402134749,1768540253078,-744.28,0.00035616,10]
[402134750,1768540253087,-865.98,0.00035616,10]
[402134751,1768540253096,-508.92469801,0.00035616,10]
[402134752,1768540253105,-500.0,0.00035616,10]
[402134753,1768540253115,-839.27,0.00035616,10]
[402134754,1768540253124,-500.0,0.00035616,10]
[402134755,1768540253134,-1055.83,0.00035616,10]
[402134756,1768540253144,-500.0,0.00035616,10]
[402134757,1768540253153,-1020.16,0.00035616,10]
[402134758,1768540253162,-501.5933968,0.00035616,10]
[402134759,1768540253172,-1064.34,0.00035616,10]
[402134760,1768540253182,-907.52,0.00035616,10]
[402134761,1768540253191,-1555.16,0.00035616,10]
[402134762,1768540253200,-500.0,0.00035616,10]
[402134763,1768540253209,-509.93269732,0.00035616,10]
[402134764,1768540253219,-1407.35,0.00035616,10]
[402134765,1768540253229,-500.0,0.00035616,10]
[402134766,1768540253238,-500.0,0.00035616,10]
[402134767,1768540253247,-719.85,0.00035616,10]
[402134768,1768540253256,-151.0,0.00035616,31]
[402134769,1768540253266,-504.74102659,0.00035616,10]
[402134770,1768540253275,-502.53139929,0.00035616,10]
[402134771,1768540253285,-500.0,0.00035616,10]
[402134772,1768540253294,-151.0,0.00035616,31]
[402134773,1768540253303,-505.16930135,0.00035616,10]
[402134774,1768540253312,-500.0,0.00035616,10]
[402134775,1768540253322,-506.88309176,0.00035616,10]
[402134776,1768540253331,-598.87,0.00035616,10]
[402134777,1768540253341,-502.17092893,0.00035616,10]
[402134778,1768540253351,-738.16,0.00035616,10]
[402134779,1768540253360,-834.67,0.00035616,10]
[402134780,1768540253369,-500.0,0.00035616,10]
[402134781,1768540253379,-1262.31,0.00035616,10]
[402134782,1768540253388,-1155.07,0.00035616,10]
[402134783,1768540253397,-500.0,0.00035616,10]
[402134784,1768540253406,-500.0,0.00035616,10]
[402134785,1768540253415,-527.8,0.00035616,10]
[402134786,1768540253425,-502.4597894,0.00035616,10]
[402134787,1768540253434,-972.21,0.00035616,10]
[402134788,1768540253443,-984.78,0.00035616,10]
[402134789,1768540253453,-520.86,0.00035616,10]
[402134790,1768540253463,-500.0,0.00035616,10]
[402134791,1768540253473,-500.0,0.00035616,10]
[402134792,1768540253482,-502.47560229,0.00035616,10]
[402134793,1768540253492,-504.18143646,0.00035616,10]
[402134794,1768540253502,-502.00744164,0.00035616,10]
[402134795,1768540253512,-500.0,0.00035616,10]
[402134796,1768540253521,-1021.37,0.00035616,10]
[402134797,1768540253531,-1614.43,0.00035616,10]
[402134798,1768540253540,-500.0,0.00035616,10]
[402134799,1768540253549,-511.23661577,0.00035616,10]
[402134800,1768540253559,-500.0,0.00035616,10]
[402134801,1768540253569,-500.0,0.00035616,10]
[402134802,1768540253578,-1008.27,0.00035616,10]
[402134803,1768540253587,-500.0,0.00035616,10]
[402134804,1768540253596,-555.73713391,0.00035616,10]
[402134805,1768540253606,-1006.17,0.00035616,10]
[402134806,1768540253615,-778.38,0.00035616,10]
[402134807,1768540253625,-507.4192653,0.00035616,10]
[402134808,1768540253634,-504.12795132,0.00035616,10]
[402134809,1768540253644,-503.59317104,0.00035616,10]
[402134810,1768540253653,-500.0,0.00035616,10]
[402134811,1768540253663,-500.0,0.00035616,10]
[402134812,1768540253672,-500.0,0.00035616,10]
[402134813,1768540253682,-1848.72,0.00035616,10]
[402134814,1768540253691,-3474.65,0.00035616,10]
[402134815,1768540253700,-562.06209008,0.00035616,10]
[402134816,1768540253709,-671.14,0.00035616,10]
[402134817,1768540253718,-894.75,0.00035616,10]
[402134818,1768540253728,-500.0,0.00035616,10]
[402134819,1768540253737,-1094.58,0.00035616,10]
[402134820,1768540253747,-500.0,0.00035616,10]
[402134821,1768540253756,-500.0,0.00035616,10]
[402134822,1768540253765,-853.02,0.00035616,10]
[402134823,1768540253775,-500.0,0.00035616,10]
[402134824,1768540253784,-500.0,0.00035616,10]
[402134825,1768540253793,-500.95423854,0.00035616,10]
[402134826,1768540253802,-1400.83,0.00035616,10]
[402134827,1768540253812,-500.0,0.00035616,10]
[402134828,1768540253821,-538.1,0.00035616,10]
[402134829,1768540253830,-587.65,0.00035616,10]
[402134830,1768540253839,-500.0,0.00035616,10]
[402134831,1768540253848,-867.57,0.00035616,10]
[402134832,1768540253858,-500.0,0.00035616,10]
[402134833,1768540253867,-500.0,0.00035616,10]
[402134834,1768540253876,-500.0,0.00035616,10]
[402134835,1768540253885,-500.0,0.00035616,10]
[402134836,1768540253894,-500.0,0.00035616,10]
[402134837,1768540253903,-591.13914545,0.00035616,10]
[402134838,1768540253912,-544.68,0.00035616,10]
[402134839,1768540253922,-4579.28,0.00035616,10]
[402134840,1768540253931,-568.61,0.00035616,10]
[402134841,1768540253940,-502.65019026,0.00035616,10]
[402134842,1768540253949,-500.0,0.00035616,10]
[402134843,1768540253958,-500.0,0.00035616,10]
[402134844,1768540253967,-500.0,0.00035616,10]
[402134845,1768540253977,-1809.17,0.00035616,10]
[402134846,1768540253987,-507.38008876,0.00035616,10]
[402134847,1768540253996,-501.91430747,0.00035616,10]
[402134848,1768540254005,-503.76927767,0.00035616,10]
[402134849,1768540254014,-500.0,0.00035616,10]
[402134850,1768540254024,-500.0,0.00035616,10]
[402134851,1768540254033,-784.89,0.00035616,10]
[402134852,1768540254042,-578.92,0.00035616,10]
[402134853,1768540254051,-508.39,0.00035616,10]
[402134854,1768540254060,-505.1477895,0.00035616,10]
[402134855,1768540254069,-247.74730665,0.00035616,10]
[402134856,1768540254078,-500.0,0.00035616,10]
[402134857,1768540254088,-500.0,0.00035616,10]
[402134858,1768540254097,-736.67,0.00035616,10]
[402134859,1768540254106,-501.6260807,0.00035616,10]
[402134860,1768540254115,-500.0,0.00035616,10]
[402134861,1768540254124,-500.0,0.00035616,10]
[402134862,1768540254134,-614.62,0.00035616,10]
[402134863,1768540254145,-500.0,0.00035616,10]
[402134864,1768540254154,-423.17114008,0.00035616,10]
[402134865,1768540254163,-520.41563155,0.00035616,10]
[402134866,1768540254172,-501.95354927,0.00035616,10]
[402134867,1768540254182,-953.76,0.00035616,10]
[402134868,1768540254190,-525.27,0.00035616,10]
[402134869,1768540254199,-572.59657579,0.00035616,10]
[402134870,1768540254209,-895.93,0.00035616,10]
[402134871,1768540254218,-500.0,0.00035616,10]
[402134872,1768540254227,-500.0,0.00035616,10]
[402134873,1768540254236,-500.0,0.00035616,10]
[402134874,1768540254245,-501.06835558,0.00035616,10]
[402134875,1768540254254,-505.19278608,0.00035616,10]
[402134876,1768540254263,-270.01176104,0.00035616,10]
[402134877,1768540254273,-500.0,0.00035616,10]
[402134878,1768540254283,-500.0,0.00035616,10]
[402134879,1768540254293,-3378.46,0.00035616,10]
[402134880,1768540254302,-1186.82,0.00035616,10]
[402134881,1768540254312,-508.00454134,0.00035616,10]
[402134882,1768540254322,-500.0,0.00035616,10]
[402134883,1768540254331,-506.2572072,0.00035616,10]
[402134884,1768540254341,-500.0,0.00035616,10]
[402134885,1768540254351,-512.8563347,0.00035616,10]
[402134886,1768540254360,-500.0,0.00035616,10]
[402134887,1768540254369,-558.81,0.00035616,10]
[402134888,1768540254379,-500.0,0.00035616,10]
[402134889,1768540254389,-500.0,0.00035616,10]
[402134890,1768540254398,-1300.81,0.00035616,10]
[402134891,1768540254408,-1219.02,0.00035616,10]
[402134892,1768540254418,-2675.45,0.00035616,10]
[402134893,1768540254427,-500.0,0.00035616,10]
[402134894,1768540254437,-500.0,0.00035616,10]
[402134895,1768540254447,-1067.27,0.00035616,10]
[402134896,1768540254457,-1065.56,0.00035616,10]
[402134897,1768540254466,-2023.53,0.00035616,10]
[402134898,1768540254475,-500.0,0.00035616,10]
[402134899,1768540254485,-1132.02,0.00035616,10]
[402134900,1768540254495,-1479.39,0.00035616,10]
[402134901,1768540254504,-876.35,0.00035616,10]
[402134902,1768540254514,-500.0,0.00035616,10]
[402134903,1768540254524,-510.91213341,0.00035616,10]
[402134904,1768540254533,-500.0,0.00035616,10]
[402134905,1768540254542,-510.96056983,0.00035616,10]
[402134906,1768540254552,-502.33863377,0.00035616,10]
[402134907,1768540254562,-510.96516392,0.00035616,10]
[402134908,1768540254571,-500.0,0.00035616,10]
[402134909,1768540254580,-506.48631738,0.00035616,10]
[402134910,1768540254589,-506.37132421,0.00035616,10]
[402134911,1768540254599,-500.0,0.00035616,10]
[402134912,1768540254608,-549.28,0.00035616,10]
[402134913,1768540254617,-628.82,0.00035616,10]
[402134914,1768540254626,-697.52,0.00035616,10]
[402134915,1768540254635,-502.54149917,0.00035616,10]
[402134916,1768540254645,-504.62313608,0.00035616,10]
[402134917,1768540254655,-500.0,0.00035616,10]
[402134918,1768540254664,-1088.76,0.00035616,10]
[402134919,1768540254673,-732.11,0.00035616,10]
[402134920,1768540254683,-1631.73,0.00035616,10]
[402134921,1768540254692,-500.0,0.00035616,10]
[402134922,1768540254701,-501.22575546,0.00035616,10]
[402134923,1768540254710,-793.54,0.00035616,10]
[402134924,1768540254719,-500.0,0.00035616,10]
[402134925,1768540254729,-658.84,0.00035616,10]
[402134926,1768540254738,-500.0,0.00035616,10]
[402134927,1768540254747,-500.0,0.00035616,10]
[402134928,1768540254755,-542.86,0.00035616,10]
[402134929,1768540254764,-500.0,0.00035616,10]
[402134930,1768540254773,-500.0,0.00035616,10]
[402134931,1768540254782,-500.0,0.00035616,10]
[402134932,1768540254791,-500.0,0.00035616,10]
[402134933,1768540254799,-500.0,0.00035616,10]
[402134934,1768540254808,-500.0,0.00035616,10]
[402134935,1768540254817,-2294.79,0.00035616,10]
[402134936,1768540254826,-500.0,0.00035616,10]
[402134937,1768540254835,-500.0,0.00035616,10]
[402134938,1768540254844,-500.0,0.00035616,10]
[402134939,1768540254853,-1082.68,0.00035616,10]
[402134940,1768540254862,-500.0,0.00035616,10]
[402134941,1768540254871,-500.81501916,0.00035616,10]
[402134942,1768540254880,-1860.54,0.00035616,10]
[402134943,1768540254890,-501.02518312,0.00035616,10]
[402134944,1768540254898,-991.41,0.00035616,10]
[402134945,1768540254907,-500.0,0.00035616,10]
[402134946,1768540254916,-509.33,0.00035616,10]
[402134947,1768540254925,-2488.29,0.00035616,10]
[402134948,1768540254934,-511.95,0.00035616,10]
[402134949,1768540254943,-500.0,0.00035616,10]
[402134950,1768540254952,-575.76,0.00035616,10]
[402134951,1768540254961,-506.38091322,0.00035616,10]
[402134952,1768540254971,-502.17741648,0.00035616,10]
[402134953,1768540254981,-1090.02,0.00035616,10]
[402134954,1768540254990,-512.78687853,0.00035616,10]
[402134955,1768540255000,-500.0,0.00035616,10]
[402134956,1768540255009,-500.0,0.00035616,10]
[402134957,1768540255019,-611.42023049,0.00035616,10]
[402134958,1768540255029,-500.0,0.00035616,10]
[402134959,1768540255040,-501.89888229,0.00035616,10]
[402134960,1768540255051,-2013.01,0.00035616,10]
[402134961,1768540255062,-516.29735286,0.00035616,10]
[402134962,1768540255072,-1096.41,0.00035616,10]
[402134963,1768540255082,-2426.42,0.00035616,10]
[402134964,1768540255091,-1124.3,0.00035616,10]
[402134965,1768540255103,-500.0,0.00035616,10]
[402134966,1768540255113,-502.36324382,0.00035616,10]
[402134967,1768540255123,-1064.59,0.00035616,10]
[402134968,1768540255134,-1281.36,0.00035616,10]
[402134969,1768540255147,-500.0,0.00035616,10]
[402134970,1768540255158,-684.62,0.00035616,10]
[402134971,1768540255169,-500.64,0.00035616,10]
[402134972,1768540255179,-881.36,0.00035616,10]
[402134973,1768540255191,-500.0,0.00035616,10]
[402134974,1768540255202,-500.0,0.00035616,10]
[402134975,1768540255215,-501.91363152,0.00035616,10]
[402134976,1768540255225,-604.46,0.00035616,10]
[402134977,1768540255235,-500.0,0.00035616,10]
[402134978,1768540255244,-1020.76,0.00035616,10]
[402134979,1768540255253,-500.0,0.00035616,10]
[402134980,1768540255263,-616.01,0.00035616,10]
[402134981,1768540255272,-796.37,0.00035616,10]